Cogmind - Beta 15 @@@ ROGUE MODE // 2025.07.04 @ 11:40:32 Player: korgoth Result: Destroyed by QG-XN1(R) with Subdweller Laser Performance ------------- Evolutions (0) 0 Regions Visited (3) 600 Robots Destroyed (11) 55 Value Destroyed (339) 339 Prototype IDs (1) 20 Alien Tech Used (0) 0 Bonus (97) 97 TOTAL SCORE: 1111 Bonus ------- Follower Combat Kills 97 Cogmind --------- Core Integrity 0/250 Matter 300/300 Energy 100/100 System Corruption 0% Temperature Cool (6) Movement Core (150) Ox2 Location -10/Subcaves Parts ------- > --- POWER (1) -------- (None) > --- PROPULSION (2) --- (None) > --- UTILITY (2) ------ Small Storage Unit Makeshift Light Armor Plating > --- WEAPON (2) ------- (None) > --- INVENTORY (8) ---- Light Nuclear Core Flight Unit Flight Unit Flight Unit Flight Unit Experimental Sensor Array Light Armor Plating Light Armor Plating Peak State ------------ > --- POWER ------------ Light Nuclear Core > --- PROPULSION ------- Light Treads Light Treads > --- UTILITY ---------- Small Storage Unit Experimental Sensor Array > --- WEAPON ----------- Beam Rifle Rocket Launcher > --- INVENTORY -------- Light Nuclear Core Flight Unit Flight Unit Flight Unit Flight Unit Light Armor Plating Light Armor Plating Light Armor Plating [Rating: 20] Favorites ----------- Power Light Nuclear Core Engine Light Ion Engine Power Core Light Nuclear Core Propulsion Light Treads Treads Light Treads Utility Small Storage Unit Device Experimental Sensor Array Storage Small Storage Unit Protection Light Armor Plating Weapon Beam Rifle Energy Gun Beam Rifle Ballistic Gun Light Assault Rifle Launcher Rocket Launcher Build | -11 -10 -10 -10 ------- Run | Yrd Mat Min Sub Slots Evolved . | . . . . Power . | . . . . Propulsion . | . . . . Utility . | . . . . Weapon . | . . . . Parts Attached 19 | 6 3 9 1 Power 4 | 1 1 2 . Engine 3 | 1 1 1 . Core 1 | . . 1 . Reactor . | . . . . Propulsion 5 | 2 1 2 . Treads 5 | 2 1 2 . Leg . | . . . . Wheel . | . . . . Hover . | . . . . Flight . | . . . . Utility 4 | 1 . 2 1 Device 1 | . . 1 . Storage 1 | 1 . . . Processor . | . . . . Hackware . | . . . . Protection 2 | . . 1 1 Artifact . | . . . . Weapon 6 | 2 1 3 . Energy Gun 2 | . 1 1 . Energy Cannon . | . . . . Ballistic Gun 2 | 2 . . . Ballistic Cannon . | . . . . Launcher 2 | . . 2 . Special Weapon . | . . . . Impact Weapon . | . . . . Slashing Weapon . | . . . . Piercing Weapon . | . . . . Special Melee Weapon . | . . . . Unidentified Prototypes 1 | . . 1 . Parts Lost 8 | . 1 2 5 Power 2 | . . 1 1 Propulsion 3 | . . 1 2 Utility . | . . . . Weapon 3 | . 1 . 2 Highest Loss Streak 4 | . 1 1 4 To Critical Strikes . | . . . . Average Backups 6 | 1 4 7 7 Power . | . 1 . 1 Propulsion 3 | . 2 4 4 Utility 1 | . . 1 2 Weapon . | . . . . Tool/Special . | . . . . Unused Backups 9 | 1 . 1 7 Power 1 | . . . 1 Propulsion 4 | . . . 4 Utility 2 | . . . 2 Weapon 2 | 1 . 1 . Tool/Special . | . . . . Average Slot Usage (%) 93 | . 82 96 92 Engine 6 | . 14 7 . Core 6 | . . 6 11 Treads 26 | . 28 27 25 Device 6 | . . 5 12 Storage 14 | . 14 14 14 Protection 4 | . . 6 1 Energy Gun 11 | . 1 14 13 Ballistic Gun 5 | . 24 1 . Launcher 10 | . . 12 12 Peak Build Rating 20 | 6 6 20 20 Average Rating 12 | 4 5 12 18 On Entrance 8 | . 6 6 20 Naked Turns . | . . . . Heaviest Build 20 | 13 13 20 18 Greatest Support 40 | 40 40 40 40 Greatest Overweight (x) 5 | . . . 5 Average Overweight (x) . | . . . . Largest Inventory Capacity 8 | 8 8 8 8 Average Capacity 7 | 7 8 8 8 Most Carried 8 | 5 8 8 8 Average Carried 7 | 1 4 7 7 Final Capacity 8 | 8 8 8 8 Final Carried 8 | 1 6 8 8 Class Distribution -------------------- 54% | Mutant 45% | Scavenger-Mutant Dominant Class ---------------- Mutant | -10/Materials Mutant | -10/Mines Scavenger-Mutant | -10/Subcaves Resources | -11 -10 -10 -10 ----------- Run | Yrd Mat Min Sub Matter Collected 533 | 219 187 95 32 Remotely . | . . . . Salvage Created 344 | . 246 98 . Parts 23 | . 15 8 . Haulers Intercepted . | . . . . Recyclers Shooed 1 | . 1 . . Parts Field Recycled . | . . . . Retrieved Matter . | . . . . Parts Self-Destructed 6 | . . . 6 Prevented . | . . . . Kills | -11 -10 -10 -10 ------- Run | Yrd Mat Min Sub Combat Hostiles Destroyed 11 | . 8 3 . Guns 9 | . 8 1 . AOE 2 | . . 2 . Classes Destroyed 3 | . 2 1 . Swarmer 3 | . 3 . . Grunt 7 | . 5 2 . Sentry 1 | . . 1 . Best Kill Streak 4 | . 4 3 . Combat Bots Only 4 | . 4 3 . Max Kills in Single Turn 2 | . 1 2 . Gunslinging . | . . . . Exploded 2 | . . 2 . Melee . | . . . . Uniques/NPCs Destroyed . | . . . . Combat | -11 -10 -10 -10 -------- Run | Yrd Mat Min Sub Hostile Shots Fired 140 | . 69 34 37 Missed 40 | . 18 15 7 Hits 100 | . 51 19 30 Projectile 100 | . 51 19 30 Critical Strikes 1 | . . . 1 Damage Taken 1484 | . 579 284 621 Core 256 | . 81 71 104 Absorbed by Shields . | . . . . Core Remaining (%) 100 | 100 . . . Volleys Fired 51 | . 43 5 3 Largest 2 | . 2 2 2 Hottest 89 | . 60 70 89 Shots Fired 79 | . 67 7 5 Gun 75 | . 67 5 3 Cannon . | . . . . Launcher 4 | . . 2 2 Special . | . . . . Kinetic 66 | . 66 . . Thermal 9 | . 1 5 3 Explosive 4 | . . 2 2 Electromagnetic . | . . . . Robot Hit Streak 9 | . 9 3 4 Robot Miss Streak 3 | . 3 2 1 Penetration Max . | . . . . Secondary Targets 2 | . 2 . . Max Gunslinging Chain 1 | . 1 . . Shots Hit Robots 61 | . 52 5 4 Core Hits 25 | . 18 7 . Critical Kills . | . . . . Critical Parts Destroyed . | . . . . Critical Strikes . | . . . . Melee Attacks . | . . . . Impact . | . . . . Slashing . | . . . . Piercing . | . . . . Sneak Attacks . | . . . . Combat Hostiles . | . . . . Follow-up Attacks . | . . . . Damage Inflicted 868 | . 509 212 147 Guns 590 | . 509 53 28 Cannons . | . . . . Explosions 278 | . . 159 119 Melee . | . . . . Ramming . | . . . . Kinetic 499 | . 499 . . Thermal 91 | . 10 53 28 Explosive 278 | . . 159 119 Electromagnetic . | . . . . Impact . | . . . . Slashing . | . . . . Piercing . | . . . . Highest Corruption . | . . . . Average Corruption . | . . . . Corruption Purged . | . . . . Corruption Blocked . | . . . . Overload Shots . | . . . . Overflow Damage . | . . . . Projectiles . | . . . . Explosions . | . . . . Melee . | . . . . Knockbacks . | . . . . Impact . | . . . . Kinetic . | . . . . Secondary . | . . . . Self-Inflicted Damage . | . . . . Shots . | . . . . Rammed . | . . . . Targets Rammed . | . . . . Kicked . | . . . . Crushed . | . . . . Highest Temperature 30 | . 30 19 . Average Temperature 10 | . 9 12 . Received Heat Transfer 510 | . 273 99 138 Siege Activations . | . . . . Martial Activations . | . . . . Shielding Activations . | . . . . Robots Disrupted . | . . . . Combat Hostiles . | . . . . Robots Corrupted . | . . . . Combat Hostiles . | . . . . Parts Fried . | . . . . Impact Corruptions . | . . . . Robots Melted . | . . . . Combat Hostiles . | . . . . Parts Melted . | . . . . Heat Transferred 224 | . 25 125 74 Parts Sabotaged . | . . . . Parts Stolen . | . . . . Parts Stripped . | . . . . Power Chain Reactions . | . . . . Alert | -11 -10 -10 -10 ------- Run | Yrd Mat Min Sub Maximum Alert Level . | . . . . Low Security (%) 100 | 100 100 100 . Level 1 . | . . . . Level 2 . | . . . . Level 3 . | . . . . Level 4 . | . . . . Level 5 . | . . . . High Security . | . . . . Max Security . | . . . . Peak Influence 110 | . 110 72 . Initial 31 | . . 31 . Average 18 | . 56 7 . Influence Increases 429 | . 220 176 33 Destroy 0b10 Robot/C 280 | . 160 100 20 Destroy Leader 60 | . 30 20 10 Allied During Kill 10 | . . 7 3 Destroy Structure 4 | . . 4 . Lose Combat Pursuer 75 | . 30 45 . Influence Decreases 429 | . 140 256 33 Entered New Map 49 | . . 49 . Time Decay 317 | . 130 167 20 Lost Part 30 | . 10 20 . Lost Ally 33 | . . 20 13 Squads Dispatched 2 | . 2 . . Investigation . | . . . . Extermination . | . . . . Reinforcement 2 | . 2 . . Assault . | . . . . Garrison . | . . . . Intercept . | . . . . Searches Triggered . | . . . . Construction Impeded . | . . . . Haulers Reinforced . | . . . . Active Scanning Responses . | . . . . Cargo Convoy Interrupts . | . . . . Stealth | -11 -10 -10 -10 --------- Run | Yrd Mat Min Sub Distress Signals 3 | . 3 . . Communications Jammed . | . . . . Distress Signals . | . . . . Times Spotted 26 | . 18 6 2 Peak Tracking Total 6 | . 6 4 1 Tactical Retreats 4 | . 2 2 . Traps | -11 -10 -10 -10 ------- Run | Yrd Mat Min Sub Traps Triggered . | . . . . Indirectly . | . . . . Trap Hack Attempts . | . . . . Triggered . | . . . . Disarmed . | . . . . Reprogrammed . | . . . . Reused . | . . . . Traps Extracted . | . . . . Installed . | . . . . Triggered . | . . . . Machines | -11 -10 -10 -10 ---------- Run | Yrd Mat Min Sub Machines Disabled . | . . . . Max in Single Turn . | . . . . Machines Repaired . | . . . . Machines Dismantled . | . . . . Machines Sabotaged . | . . . . Overloaded Fab Kills . | . . . . Hacking | -11 -10 -10 -10 --------- Run | Yrd Mat Min Sub Machines Accessed 3 | . 2 . 1 Terminals 1 | . 1 . . Fabricators . | . . . . Repair Stations . | . . . . Recycling Units 1 | . 1 . . Scanalyzers . | . . . . Garrison Access . | . . . . Total Hacks 5 | . 2 . 3 Successful 3 | . . . 3 Failed 2 | . 2 . . Catastrophic . | . . . . Database Lockouts . | . . . . Manual 1 | . . . 1 Terminals 1 | . 1 . . Fabricators . | . . . . Repair Stations . | . . . . Recycling Units 1 | . 1 . . Scanalyzers . | . . . . Garrison Access . | . . . . Terminal Hacks 3 | . . . 3 Record 3 | . . . 3 Fabricator Hacks . | . . . . Repair Station Hacks . | . . . . Recycling Unit Hacks . | . . . . Scanalyzer . | . . . . Garrison Access Hacks . | . . . . Unauthorized Hacks . | . . . . Terminals . | . . . . Fabricators . | . . . . Repair Stations . | . . . . Recycling Units . | . . . . Scanalyzers . | . . . . Garrison Access . | . . . . Data Cores Recovered . | . . . . Used . | . . . . Hacking Detections 1 | . 1 . . Full Trace Events . | . . . . Feedback Events . | . . . . Feedback Blocked . | . . . . Robot Schematics Acquired . | . . . . Robots Built . | . . . . Authchips . | . . . . Time . | . . . . Total Robot Build Rating . | . . . . Part Schematics Acquired . | . . . . Parts Built . | . . . . Authchips . | . . . . Time . | . . . . Total Part Build Rating . | . . . . Parts Repaired . | . . . . Time . | . . . . Parts Recycled . | . . . . Recycled Matter . | . . . . Retrieved Matter . | . . . . Retrieved Components . | . . . . Parts Scanalyzed . | . . . . Part Schematics Acquired . | . . . . Parts Damaged . | . . . . Bothacking | -11 -10 -10 -10 ------------ Run | Yrd Mat Min Sub Used RIF Installer . | . . . . Robots Hacked . | . . . . Non-combat . | . . . . Combat . | . . . . Robot Hacks Applied . | . . . . Relay Couplers Released . | . . . . Fabnet Peak Effective % . | . . . . Robots Rewired . | . . . . Allies Hacked . | . . . . Hacks Repelled . | . . . . Allies | -11 -10 -10 -10 -------- Run | Yrd Mat Min Sub Total Allies 3 | . . 3 . Largest Group 3 | . . 3 2 Highest-Rated Group 40 | . . 40 24 Highest-Rated Ally 16 | . . 16 16 Total Orders . | . . . . Ally Attacks 34 | . . 17 17 Total Damage 268 | . . 171 97 Kills 4 | . . 2 2 Allies Corrupted . | . . . . Allies Melted . | . . . . Intel | -11 -10 -10 -10 ------- Run | Yrd Mat Min Sub Active Infowar (turns) 982 | . . 482 500 Sensors 982 | . . 482 500 Robot Analysis Total . | . . . . Derelict Logs Recovered 1 | . . 1 . Drone Launches . | . . . . Drone Recoveries . | . . . . Exploration | -11 -10 -10 -10 ------------- Run | Yrd Mat Min Sub Turns Passed 2344 | 71 396 1303 574 Spaces Moved 1330 | 46 174 770 340 Core 48 | 16 . . 32 Treads 1282 | 30 174 770 308 Legs . | . . . . Wheels . | . . . . Hover . | . . . . Flight . | . . . . Fastest Speed 50 | 50 160 160 150 Average Speed 159 | 121 160 160 162 Slowest Speed 300 | 160 160 160 300 Overloaded Moves . | . . . . Propulsion Burnouts . | . . . . Robots Hopped . | . . . . Potential Cave-ins . | . . . . Cave-ins Triggered . | . . . . Exploration Rate (%) 38 | 3 33 99 20 Regions Visited 3 Branch Regions 2 Pre-discovered Areas 1 | . . . 1 Known Exits Taken . | . . . . Unknown Exits Taken 3 | 1 1 1 . Scrap Searched 3 | . . 1 2 Spaces Dug . | . . . . Terrain Destroyed 16 | . . 6 10 Melee . | . . . . Projectile . | . . . . AOE 16 | . . 6 10 Terrain Rammed . | . . . . Walls Destroyed . | . . . . Machines Disabled . | . . . . Actions | -11 -10 -10 -10 --------- Run | Yrd Mat Min Sub Total 1485 | 61 233 835 356 Wait 49 | . 4 35 10 Move 1327 | 45 173 769 340 Hop . | . . . . Pick Up 28 | 8 8 11 1 Fast Attach . | . . . . Attach 12 | 6 1 5 . Detach . | . . . . Swap 8 | 1 2 4 1 Drop 10 | 1 2 6 1 Fire 51 | . 43 5 3 Melee . | . . . . Ram . | . . . . Kick . | . . . . Crush . | . . . . Escape Stasis . | . . . . Rewire . | . . . . Trap . | . . . . Miscellaneous . | . . . . Route ------- -11/Scrapyard -10/Materials -10/Mines (discovered 3 exits: [*Mat x2] / *Sub) -10/Subcaves (discovered 1 exit: [*Mat]) History --------- Turn | Location | Event 10 | -11/Scrapyard | Discovered new exit (range 15) 72 | -11/Scrapyard | Entered Materials 301 | -10/Materials | Build established: Mutant 460 | -10/Materials | Discovered new exit (range 6) 468 | -10/Materials | Entered Mines 504 | -10/Mines | Discovered new exit (range 8) 583 | -10/Mines | Received a Rocket Launcher from a helpful Derelict 587 | -10/Mines | Core integrity fell below 50% 867 | -10/Mines | Assisted by bots powering up and referring to "LRC-V3" 1107 | -10/Mines | Learned Materials trap positions 1134 | -10/Mines | Discovered new exit (range 10) 1134 | -10/Mines | Discovered new exit (range 11) 1283 | -10/Mines | Found a damaged Exp. Sensor Array with a note attached 1288 | -10/Mines | Found Prototype Device 1289 | -10/Mines | Identified Exp. Sensor Array 1481 | -10/Mines | Build established: Scavenger-Mutant 1771 | -10/Mines | Entered Subcaves 1771 | -10/Subcaves | Accompanied by 2 allies 1772 | -10/Subcaves | Approached by a straggling Scientist 1811 | -10/Subcaves | Visited Clippyterm 1816 | -10/Subcaves | Learned location of Deep Caves (-7) 1976 | -10/Subcaves | Discovered new exit (range 15) 2038 | -10/Subcaves | Lost 3 allies 2118 | -10/Subcaves | Shifting Twisted Machinery released Shrapnel Trap 2238 | -10/Subcaves | Disturbed a concealed Subdweller 2323 | -10/Subcaves | Core integrity fell below 20% 2345 | -10/Subcaves | Destroyed by QG-XN1(R) with Subdweller Laser Last Messages --------------- Mercenary 1a destroyed. JV-3YD(c) destroyed. Shrapnel Trap falls loose from the Twisted Machinery. Searching scrap... Found Sub. Machine Gun. Found 37 Matter. Acquired 32 matter. Searching scrap... Found Sub. Optics. Found Mak. Light Armor Plating. Found 37 Matter. Dropped Lgt. Armor Plating. Acquired Mak. Light Armor Plating. QG-XN1(R) angrily emerges from the Twisted Machinery. Lgt. Nuclear Core destroyed. Lgt. Treads destroyed. Rocket Launcher destroyed. Beam Rifle destroyed. Map ----- +----------------------------------------------------+ | ??????????????????????????????????## #??????????? | | ??????????????????????????###???#### #???##?????? | | ?????????????????????????## #?## ### ####??? | | ?????????????????????????# ## ##?? | | ?????????????????????????# #?? | | ?????????????????????????##### ##?? | | ?????????????????????????????# #####??? | | ?????????????????????????????# ## #??????? | | ?????????????????????????????## ##?###??????? | | ??????????????????????????????# ##???????????? | | ??????????????????????????????# ##????????????? | | ??????????????????????????????# ##?????#??????? | | ?????????????????????????????## ## #??????? | | ???????????????# ????????????# #???????? | | ???????????#"?< ###?????????# #???????? | | ?????????### #######??# ##### ##?????? | | ????????# ## ???# ##??? ##????? | | ????????# ??## #??? #????? | | ?????? ## ??# ## #????? | | ?????? #?## #????? | | ????? ### ## #????? | | ????? ##?## ####?????? | | ??????# ##?????####????????? | | ???????# ### ##??????????????????? | | ????????# ##### #???????????????????? | | ????????# ## ## @ ##??????????????????? | | ??????# #??????????????????? | | ???? ### R ####??????????????????? | | ??????????????## ### ##?????????????????????? | | ?????????????## ##?## #####???????????????????? | | ?????????????# ##???###? ##??????????????????? | | ?????????????# ###?????# ##?????????????????? | | ?????????????### #?#### #?????????????????? | | ???????????????## ### ??#######?????????? | | ????????????????# ## #??????# !# #?????????? | | ????????????????## #??????#%! & #?????????? | | ?????????????????#### ##?????### "##?????????? | | ????????????????????## #??????#%[#######?????? | | ?????????????????????### #?????### # #?????? | | ???????????????????????# #????## " " #?????? | | ??????????????????????## ##???# ## #?????? | | ??????????????????????# #?### ####?????? | | ??????????????????????# ### ## #????????? | | ??????????????????????# ## ## ##????????? | | ??????????????????????### #### #####?????? | | ???????????????????????## ### # #?????? | | ??????????????????????## ##?????? | | ?????????????????????## ## ##??????? | | ????????????????????## ## # #???????? | | ????????????????????# #########???????? | +----------------------------------------------------+ Best States ------------- Heat Dissipation 25 Energy Generation 14 Energy Capacity 250 Matter Stores 300 Matter Capacity 300 Sight Range 16 Robot Scan Range 20 Terrain Scan Density 10 Armor Coverage 150 Evasion (%) 50 Recoil Reduction 2 Item Schematics ----------------- None Robot Schematics ------------------ None Fabricated ------------ Nothing Repaired ---------- Nothing Alien Tech Used ----------------- None Achievements -------------- None Challenges ------------ None Game ------ Seed IntegratedDerelictMaul Manual? 0 Play Time 00:21:45 Cumulative 41.6 hours Start 2025.07.04 @ 10:48:30 End 2025.07.04 @ 11:40:32 Sessions 1 Manual Loads 0 Difficulty Rogue Special Mode None Game No. 47 Rogue 37 Adventurer 10 Explorer 0 Win Type - Total 1 Types 1/0/0/0/0/0/0/0/0/0 Lore% 20 Gallery% 29 Achievement% 26 Wizard Run 0 Options --------- Layout 1 ASCII 0 Keyboard 0 Movement Numpad Keybinds 0 Fullscreen 1 Font 24/Smallcaps Map View 50x35 Zoom Use 0% Tactical HUD 0 Map Filters NONE Filters NONE Steam 1 RUN: 699ddee4-d821-493b-9e1e-c9ac830cc304